[Event "44th Chess Olympiad Women 2022"]
[Site "Chennai"]
[Date "2022.07.29"]
[Round "1.47"]
[White "Guindy, Esmat Susanne"]
[Black "Jacobs, Annelaine"]
[Result "1-0"]
[ECO "A41"]
[WhiteElo "2097"]
[BlackElo "1612"]
[Annotator "TA"]
[PlyCount "77"]
[EventDate "2022.07.29"]
[EventType "team-tourn"]
[EventCountry "IND"]
[SourceTitle "playchess.com"]
[Source "ChessBase"]
[SourceQuality "1"]
[WhiteTeam "Denmark"]
[BlackTeam "ARU"]
[WhiteTeamCountry "DEN"]
[TimeControl "40/5400+30:1800+30"]

{[%evp 11,77,79,93,52,77,7,50,49,48,32,137,17,23,0,8,8,7,0,61,-1,6,0,0,-5,2,-9,29,31,18,0,46,35,47,38,55,49,66,66,66,62,60,56,57,54,45,25,25,12,17,15,272,265,265,257,265,260,347,358,337,334,441,441,432,421,419,409,1870,592]} 1. d4 {[%emt 0:00:05]} d6 {[%emt 0:00:05]} 2. Nf3 {[%emt 0:00:26]} g6 {[%emt 0:00:53]} 3. g3 {[%emt 0:00:40]} Bg7 {[%emt 0:00:16]} 4. Bg2 {[%emt 0:00:20]} e5 {[%emt 0:01:41]} 5. dxe5 {[%emt 0:03:46]} dxe5 {[%emt 0:00:13]} 6. Qxd8+ {[%emt 0:00:12]} Kxd8 {[%emt 0:00:07]} 7. Ng5 {[%emt 0:02:41] [#] A41: 1 d4 d6: Tartakower System and Modern Defence.} Ke7 $146 {[%emt 0:19:25]} ({Predecessor:} 7... Nh6 8. Bd5 Ke7 9. b3 Rd8 10. e4 c6 11. Bc4 b5 12. Be2 a5 13. a4 b4 14. Nd2 f6 {0-1 (38) Terbe,J (2305)-Czebe,A (2379) Ajka 2021}) 8. b3 {[%emt 0:14:13]} (8. Nc3 $16 {And now Nd5+ would win.} Nf6 9. f4) 8... h6 {[%emt 0:12:16]} (8... e4 $5 {[%cal Rg7a1]} 9. c3 f5 $11) 9. Ba3+ {[%emt 0:02:18] White is slightly better.} Ke8 {[%emt 0:00:47]} 10. Ne4 {[%emt 0:03:29] Hoping for Nbc3.} Nd7 {[%emt 0:09:58]} (10... f5 $1 $14) 11. O-O {[%emt 0:04:43] 0x0.002363f28771dp-1022s more active pieces.} (11. Nbc3 $16) 11... f5 $11 {[%emt 0:08:38]} 12. Nc5 {[%emt 0:09:47]} Nxc5 {[%emt 0:00:46]} 13. Bxc5 {[%emt 0:00:09]} e4 {[%emt 0:05:24]} 14. c3 {[%emt 0:00:10]} Ne7 {[%emt 0:05:57]} ({Better is} 14... c6 $11) 15. Bd4 {[%emt 0:01:10]} (15. f3 $1 $14) 15... Kf7 {[%emt 0:01:30]} 16. Na3 {[%emt 0:04:31]} c6 {[%emt 0:07:30]} 17. Nc4 {[%emt 0:05:11]} Rd8 {[%emt 0:01:04]} 18. Ne5+ {[%emt 0:14:03]} Bxe5 {[%emt 0:01:56]} 19. Bxe5 {[%emt 0:02:16]} Be6 {[%emt 0:02:30]} 20. c4 {[%emt 0:05:51]} h5 {[%emt 0:08:31]} (20... b5 $11) 21. f3 $14 {[%emt 0:01:41]} exf3 {[%emt 0:00:58]} 22. Bxf3 {[%emt 0:00:48] A strong pair of Bishops.} Kg8 {[%emt 0:07:51]} 23. Rad1 {[%emt 0:03:38]} Rd7 {[%emt 0:01:49]} 24. Rxd7 {[%emt 0:00:45]} Bxd7 {[%emt 0:00:05]} 25. Rd1 {[%emt 0:01:32]} Be6 {[%emt 0:00:24]} 26. Rd6 $36 {[%emt 0:04:13][%mdl 2048] White has good play.} Kf7 {[%emt 0:00:03]} 27. Kf2 {[%emt 0:03:04]} Ng8 {[%emt 0:00:18]} 28. e4 {[%emt 0:03:44]} Re8 {[%emt 0:00:57]} 29. Bd4 {[%emt 0:01:50]} fxe4 {[%emt 0:01:47]} 30. Bxe4 {[%emt 0:00:56]} Bf5 $2 {[%emt 0:00:44][%mdl 8192] [#] A mistake that costs the game.} (30... Ke7 $11 31. Bc5 Kf7) 31. Bxf5 $18 {[%emt 0:01:31]} gxf5 {[%emt 0:00:32][%mdl 4096] Endgame KRB-KRN} 32. Rd7+ {[%emt 0:00:34]} ({Weaker is} 32. Bxa7 Nf6 33. Kf3 Ra8 $16) 32... Re7 {[%emt 0:00:29]} 33. Rxe7+ {[%emt 0:00:09]} Kxe7 {[%emt 0:00:08]} 34. Bxa7 {[%emt 0:00:09] KB-KN} Nf6 {[%emt 0:00:43]} 35. Kf3 {[%emt 0:01:34]} Ng4 {[%emt 0:00:36]} 36. h3 {[%emt 0:00:44]} Nf6 {[%emt 0:00:49]} 37. Kf4 {[%emt 0:02:49]} Ke6 {[%emt 0:00:06]} 38. Bd4 {[%emt 0:00:56] [#] aiming for Bxf6.} Kf7 {[%emt 0:01:10]} (38... Ne4 $142 39. g4 hxg4) 39. Kxf5 {[%emt 0:00:39] Weighted Error Value: White=0.22 (precise) /Black=0.39} (39. Bxf6 $142 Kxf6 40. c5) 1-0

[Event "44th Chess Olympiad Women 2022"]
[Site "Chennai"]
[Date "2022.07.29"]
[Round "1.47"]
[White "Fredericia, Louise"]
[Black "Aponte, Samantha"]
[Result "1-0"]
[ECO "C26"]
[WhiteElo "1990"]
[BlackElo "1087"]
[Annotator "TA"]
[PlyCount "59"]
[EventDate "2022.07.29"]
[EventType "team-tourn"]
[EventCountry "IND"]
[SourceTitle "playchess.com"]
[Source "ChessBase"]
[SourceQuality "1"]
[WhiteTeam "Denmark"]
[BlackTeam "ARU"]
[WhiteTeamCountry "DEN"]
[TimeControl "40/5400+30:1800+30"]

{[%evp 10,59,13,-41,15,0,0,-18,23,-20,6,0,0,-8,62,56,73,90,80,6,62,37,86,56,192,189,372,367,718,723,718,731,716,677,1948,1950,1812,1843,1935,1950,1896,1890,1980,2010,1935,1943,1858,1834,6534,3177,29982,29983]} 1. e4 {[%emt 0:00:14]} e5 {[%emt 0:00:22]} 2. Nc3 {[%emt 0:00:07]} Nc6 {[%emt 0:01:20]} 3. g3 {[%emt 0:00:15]} Nf6 {[%emt 0:02:41]} 4. Bg2 {[%emt 0:00:12]} Bc5 {[%emt 0:01:58]} 5. Nge2 {[%emt 0:00:13]} d6 {[%emt 0:01:02]} 6. h3 {[%emt 0:01:27]} (6. Na4 $11) 6... Be6 {[%emt 0:05:53] has lost popularity (6...a6). C26: Vienna Game: 2...Nf6, sidelines .} (6... a5 $15) 7. O-O {[%emt 0:03:57]} (7. Na4 $5 {[%cal Ra4c5]}) 7... Qd7 {[%emt 0:07:48]} 8. Kh2 {[%emt 0:00:18]} O-O-O {[%emt 0:02:12] The position is equal.} 9. Na4 {[%emt 0:02:32]} (9. Nd5 {is interesting.} Nxe4 10. Bxe4 Bxh3 11. Bg2) 9... Bb6 {[%emt 0:01:01]} 10. Nxb6+ {[%emt 0:05:05]} (10. f3 {keeps more tension.} d5 11. d3 h5 12. Bg5) 10... axb6 {[%emt 0:00:39] [#]} 11. f4 $146 {[%emt 0:06:44][%cal Bf2f4,Bf4f5][%mdl 32] [#]} ({Predecessor:} 11. Nc3 Qe7 12. Nd5 Qf8 13. c3 Ne7 14. c4 b5 15. Nxe7+ Qxe7 16. cxb5 Bc4 17. d3 Bxb5 {1-0 (30) Zimmerer,L (1618)-Bohrmann,S (1563) Oberhof 2010}) 11... Qe7 {[%emt 0:13:15]} (11... Nxe4 $1 $11 12. Bxe4 (12. d4 d5) 12... Bxh3) 12. d3 $14 {[%emt 0:07:01]} Kb8 {[%emt 0:10:06]} 13. f5 {[%emt 0:05:06]} Bc8 {[%emt 0:01:14] [#]} 14. g4 {[%emt 0:00:14]} (14. Nc3 $1 $16) 14... Rdf8 {[%emt 0:08:02]} ({Better is} 14... g5 $11) 15. Ng3 {[%emt 0:07:18]} Nd7 {[%emt 0:09:32]} (15... h6 $14) 16. c3 $16 {[%emt 0:05:32][%cal Bc2c3,Bc3c4][%mdl 32]} f6 {[%emt 0:02:29] A mistake that costs the game.} ({Black should try} 16... h6 $14) 17. b4 {[%emt 0:00:34]} b5 $2 {[%emt 0:06:19]} (17... g6 18. Be3 Qg7) 18. a4 $18 {[%emt 0:01:29][%cal Ba2a4,Ba4b5][%mdl 32]} Nb6 $2 {[%emt 0:10:58]} (18... Nd8 19. axb5 b6) 19. axb5 {[%emt 0:01:31]} Na7 {[%emt 0:01:05]} 20. c4 {[%emt 0:01:16]} Bd7 {[%emt 0:02:02]} 21. Be3 {[%emt 0:01:21]} Nbc8 {[%emt 0:03:20]} 22. Bxa7+ {[%emt 0:01:58]} Nxa7 {[%emt 0:00:29]} 23. Qa4 {[%emt 0:00:12]} Kc8 {[%emt 0:01:20]} 24. Qxa7 {[%emt 0:00:21][%cal Ra7a8]} Kd8 {[%emt 0:00:41]} 25. Qxb7 {[%emt 0:01:20] White threatens Ra8+ and mate.} Bc8 {[%emt 0:01:44]} 26. Ra8 {[%emt 0:02:34][%csl Ga8][%cal Rb7c8]} Qd7 {[%emt 0:00:53]} 27. Rfa1 {[%emt 0:00:41]} Ke7 {[%emt 0:00:54]} 28. Qd5 {[%emt 0:00:23]} Qd8 {[%emt 0:01:39]} 29. b6 {[%emt 0:02:07] R1a7 would kill now.} Qd7 {[%emt 0:02:28]} 30. R1a7 {[%emt 0:00:49] Weighted Error Value: White=0.18 (very precise) /Black=0.99} 1-0

[Event "44th Chess Olympiad Women 2022"]
[Site "Chennai"]
[Date "2022.07.29"]
[Round "1.47"]
[White "Sagastegui, Thamara"]
[Black "Kakulidis, Ellen"]
[Result "0-1"]
[ECO "B22"]
[WhiteElo "1362"]
[BlackElo "2057"]
[Annotator "TA"]
[PlyCount "114"]
[EventDate "2022.07.29"]
[EventType "team-tourn"]
[EventCountry "IND"]
[SourceTitle "playchess.com"]
[Source "ChessBase"]
[SourceQuality "1"]
[WhiteTeam "ARU"]
[BlackTeam "Denmark"]
[BlackTeamCountry "DEN"]
[TimeControl "40/5400+30:1800+30"]

{[%evp 12,114,26,20,18,24,21,0,15,-14,0,0,8,-24,-18,-23,-22,-38,-33,-36,-30,-35,-5,-7,-5,-8,0,-27,-25,-14,0,0,0,0,0,-8,-8,-8,-9,-8,-8,-16,0,-235,-235,-227,-64,-68,-65,-67,-61,-59,-69,-55,-56,-67,-55,-59,-36,-43,-44,-59,-67,-149,-51,-1377,-161,-360,-166,-162,-130,-1118,-1095,-1055,-1099,-1123,-1105,-753,-570,-1292,-1113,-1246,-1267,-1241,-879,-1591,-1317,-1282,-75,-1072,-985,-1106,-413,-1929,-62,-71,-68,-29950,-29960,-29956,-29961,-29952,-12817,-29985,-29986]} 1. e4 {[%emt 0:00:03]} c5 {[%emt 0:00:06]} 2. c3 {[%emt 0:00:05]} Nf6 {[%emt 0:00:14]} 3. e5 {[%emt 0:00:24]} Nd5 {[%emt 0:00:44]} 4. d4 {[%emt 0:00:38]} cxd4 {[%emt 0:00:45]} 5. cxd4 {[%emt 0:00:05]} e6 {[%emt 0:00:50]} 6. Nf3 {[%emt 0:01:02]} b6 {[%emt 0:00:39]} 7. Bc4 {[%emt 0:02:11]} Ba6 {[%emt 0:01:43] B22: Sicilian: 2 c3.} 8. Bxa6 {[%emt 0:03:05]} Nxa6 {[%emt 0:00:14][%cal Bb8a6,Ba6c7,Bc7d5][%mdl 32]} 9. a3 {[%emt 0:01:00]} Be7 {[%emt 0:07:09] The position is equal.} 10. Bd2 {[%emt 0:00:45]} Nac7 {[%emt 0:02:02] [#]} 11. Nc3 $146 {[%emt 0:03:12]} ({Predecessor:} 11. Qe2 Qc8 12. Nc3 Nxc3 13. Bxc3 Nd5 14. Rc1 Qb7 15. Bd2 O-O 16. O-O Rac8 17. Rfd1 {0-1 (51) Hatzigrigoriou,G (1584)-Kalogeris,I (1860) Kallithea 2010}) 11... Nxc3 {[%emt 0:01:38]} 12. Bxc3 {[%emt 0:00:06]} O-O {[%emt 0:01:02]} 13. O-O {[%emt 0:00:48]} Nd5 {[%emt 0:00:16]} 14. Qd2 {[%emt 0:00:38]} Rc8 {[%emt 0:07:41]} 15. Rac1 {[%emt 0:00:22]} h6 {[%emt 0:06:39]} 16. Qd3 {[%emt 0:13:38]} Nxc3 {[%emt 0:08:37]} 17. Rxc3 {[%emt 0:00:08]} d6 {[%emt 0:02:01]} 18. Rfc1 {[%emt 0:04:21]} Qd7 {[%emt 0:11:32]} 19. Qc2 {[%emt 0:06:40][%cal Rc3c8]} Rxc3 {[%emt 0:04:57]} 20. Qxc3 {[%emt 0:00:08]} dxe5 {[%emt 0:03:30]} 21. Nxe5 {[%emt 0:06:53]} Qd6 {[%emt 0:08:47]} 22. Qc7 {[%emt 0:08:45]} Rd8 {[%emt 0:09:30][%cal Od6d4,Bf8d8,Bd8d7,Bd7c7,Bc7c3][%mdl 32]} 23. Qxd6 {[%emt 0:02:23]} Bxd6 $11 {[%emt 0:01:42][%mdl 4096] Endgame KRB-KRN} 24. Nc6 {[%emt 0:07:59]} Rd7 {[%emt 0:01:16]} 25. g3 {[%emt 0:02:21]} Rc7 {[%emt 0:02:45]} 26. Rc3 {[%emt 0:05:47]} Kf8 {[%emt 0:03:55]} 27. Nb4 $2 {[%emt 0:03:29]} (27. Kg2 $11 {and White has nothing to worry.}) 27... Rxc3 $19 {[%emt 0:01:41]} 28. bxc3 {[%emt 0:00:10] KB-KN} a5 $2 {[%emt 0:00:13]} (28... Bxb4 $19 29. cxb4 Ke7) 29. Nc2 $15 {[%emt 0:01:48]} b5 {[%emt 0:00:24]} 30. Kf1 {[%emt 0:02:23]} Ke7 {[%emt 0:00:16]} 31. Ke2 {[%emt 0:00:30]} Kd7 {[%emt 0:00:46]} 32. Kd3 {[%emt 0:02:43]} Kc6 {[%emt 0:00:09]} 33. c4 {[%emt 0:01:16]} bxc4+ {[%emt 0:01:04]} 34. Kxc4 {[%emt 0:00:08]} a4 $1 {[%emt 0:03:15]} 35. Nb4+ {[%emt 0:07:55]} Kb6 $1 {[%emt 0:00:49]} 36. d5 {[%emt 0:12:01]} e5 $1 {[%emt 0:01:34]} 37. f3 {[%emt 0:01:36]} (37. g4 $15) 37... h5 {[%emt 0:02:35]} (37... f5 $1 $17 38. Nc2 h5) 38. Kd3 $2 {[%emt 0:01:26][%mdl 8192]} (38. Na2 $15) 38... Kc5 $2 {[%emt 0:03:36]} (38... Bxb4 39. h3 Bxa3) 39. Kc3 $2 {[%emt 0:00:34]} (39. g4) 39... f6 {[%emt 0:00:45]} (39... g5 $142 40. g4 hxg4 41. fxg4 e4) 40. Kd3 $19 {[%emt 0:00:32]} g5 {[%emt 0:01:29]} 41. Kc3 $2 {[%emt 0:30:31][%mdl 8192]} (41. Na2 $17) 41... g4 {[%emt 0:10:38]} 42. fxg4 {[%emt 0:00:00]} hxg4 {[%emt 0:00:03]} 43. Nc2 {[%emt 0:00:00]} Kxd5 {[%emt 0:01:26]} 44. Ne3+ {[%emt 0:00:00]} Ke6 {[%emt 0:01:01]} 45. Kc4 {[%emt 0:00:00]} Bxa3 {[%emt 0:01:52] And now ...f5 would win.} 46. Nxg4 {[%emt 0:00:00]} f5 {[%emt 0:12:06]} 47. Nf2 {[%emt 0:00:00]} Bd6 {[%emt 0:01:49]} 48. g4 {[%emt 0:00:00]} fxg4 {[%emt 0:02:46]} 49. Nxg4 {[%emt 0:00:00]} Kf5 $2 {[%emt 0:00:06]} (49... e4 $19 50. Ne3 Bf4) 50. h3 $2 {[%emt 0:00:25][%mdl 8192]} (50. Ne3+ $17 Kf4 51. Nd5+ Kf5 52. h4) 50... Kf4 $1 {[%emt 0:00:38]} 51. Nf6 {[%emt 0:01:19]} e4 {[%emt 0:03:12]} (51... a3 $142 52. Kb3 Kf5) 52. Nd5+ {[%emt 0:01:08] [#]} (52. h4 $142 Kf5 53. Nd5) 52... Ke5 $2 {[%emt 0:00:09]} ({Better is} 52... Kg3 $1 $19 {( -> ...a3)} 53. Ne3 a3) 53. Ne3 $1 $15 {[%emt 0:01:03]} a3 {[%emt 0:00:50][%cal Ba4a3,Ba3a2][%mdl 32] Hoping for ...Kf4.} 54. Kb3 $2 {[%emt 0:00:04][%mdl 8192]} (54. Nc2 $15) 54... Kf4 {[%emt 0:00:34]} 55. Nc2 {[%emt 0:02:50]} e3 {[%emt 0:01:05]} 56. Kc3 {[%emt 0:00:40]} Be5+ {[%emt 0:00:36]} (56... e2 $142 57. Kd2 Kf3 58. Kc3 {[#]} Bb4+ $1 {[%mdl 512]} 59. Kxb4 a2 60. Kb3 a1=Q 61. Nxa1 e1=Q 62. Nc2 Qe6+ 63. Kb2 Qxh3 64. Kc3 Ke4+ 65. Kd2 Qb3 66. Ne1 Qe3+ 67. Kd1 Qf2 68. Nc2 Kd3 69. Nb4+ Kc4 70. Nd5 Kxd5 71. Kc1 Kd4 72. Kd1 Kd3 73. Kc1 Qc2#) 57. Kd3 {[%emt 0:00:05]} a2 {[%emt 0:01:19] Weighted Error Value: White=1.11/Black=0.69} 0-1

[Event "44th Chess Olympiad Women 2022"]
[Site "Chennai"]
[Date "2022.07.29"]
[Round "1.48"]
[White "Machlik, Edit"]
[Black "Marochkina, Nadezhda Valerevna"]
[Result "1-0"]
[ECO "D36"]
[WhiteElo "2084"]
[BlackElo "1687"]
[Annotator "TA"]
[PlyCount "62"]
[EventDate "2022.07.29"]
[EventType "team-tourn"]
[EventCountry "IND"]
[SourceTitle "playchess.com"]
[Source "ChessBase"]
[SourceQuality "1"]
[WhiteTeam "Norway"]
[BlackTeam "Senegal"]
[WhiteTeamCountry "NOR"]
[BlackTeamCountry "SEN"]
[TimeControl "40/5400+30:1800+30"]

{[%evp 24,62,1,0,-1,0,23,22,27,32,54,62,62,68,61,68,64,52,85,64,56,54,101,96,96,89,118,67,140,70,106,74,109,0,0,-78,-75,-14,-25,-106,-102]} 1. d4 {[%emt 0:00:03]} d5 {[%emt 0:00:08]} 2. c4 {[%emt 0:00:06]} e6 {[%emt 0:00:15]} 3. Nc3 {[%emt 0:00:19]} Nf6 {[%emt 0:00:32]} 4. cxd5 {[%emt 0:00:08]} exd5 {[%emt 0:00:30]} 5. Bg5 {[%emt 0:00:15]} Be7 {[%emt 0:00:52]} 6. e3 {[%emt 0:00:22]} c6 {[%emt 0:00:44]} 7. Qc2 {[%emt 0:00:19]} Nbd7 {[%emt 0:01:41]} 8. Bd3 {[%emt 0:00:44]} Nf8 {[%emt 0:02:52]} 9. h3 {[%emt 0:03:59]} Ne6 {[%emt 0:04:38]} 10. Bh4 {[%emt 0:04:16]} g6 {[%emt 0:04:29]} 11. Nf3 {[%emt 0:04:22]} Ng7 {[%emt 0:03:39]} 12. O-O {[%emt 0:01:17]} O-O {[%emt 0:01:49]} 13. Bxf6 {[%emt 0:12:30]} Bxf6 {[%emt 0:00:11] D36: Queen's Gambit Declined: Exchange Variation: Main line (5 Bg5 c6 6 Qc2).} 14. b4 {[%emt 0:00:08] [#]} Nf5 $146 {[%emt 0:09:09]} ({Predecessor:} 14... a6 15. a4 Bf5 16. b5 a5 17. bxc6 bxc6 18. Rab1 Rc8 19. Ne2 Qd7 20. Nf4 Rfe8 21. Rfc1 {½-½ (63) Moroni,L (2565)-Abasov,N (2641) Chess.com INT 2019}) 15. b5 {[%emt 0:07:26]} cxb5 {[%emt 0:05:41] The position is equal.} 16. Nxb5 {[%emt 0:04:21]} Bd7 {[%emt 0:06:43]} 17. Qb3 {[%emt 0:04:48]} Ne7 {[%emt 0:08:37]} 18. Rfc1 {[%emt 0:05:30]} Bc6 {[%emt 0:12:17]} 19. Nc3 {[%emt 0:04:19] 0x0.0019ed9b34e3dp-1022s more active pieces. The black rooks are badly placed.} a6 {[%emt 0:02:08]} 20. Ne1 {[%emt 0:07:19]} Qa5 {[%emt 0:10:21]} 21. a4 {[%emt 0:07:41]} Rfd8 {[%emt 0:08:41]} 22. Be2 {[%emt 0:01:22]} Nc8 {[%emt 0:04:12]} (22... Nf5 $14) 23. Nd3 $16 {[%emt 0:04:00]} Be7 {[%emt 0:04:01]} 24. Bf3 {[%emt 0:02:22]} Nb6 {[%emt 0:02:18]} 25. Ne5 {[%emt 0:17:52]} (25. Rab1 $16 Nxa4 26. Nxa4 Qxa4 27. Qxa4 Bxa4 28. Rxb7) 25... Rac8 {[%emt 0:00:36] [#]} (25... Kg7 $14) 26. Bg4 {[%emt 0:02:44]} (26. Rab1 $1 $16 f6 27. Nxc6 (27. Qxb6 Qxb6 28. Rxb6 fxe5 $16) 27... Rxc6 28. Ne2 Rxc1+ 29. Rxc1) 26... f5 {[%emt 0:01:05]} 27. Bf3 {[%emt 0:01:44] And now Rab1 would win.} Kg7 {[%emt 0:01:10]} 28. g4 {[%emt 0:03:22]} (28. Ne2 $16) 28... Nc4 $11 {[%emt 0:00:02]} 29. Nxc4 {[%emt 0:00:13]} (29. Ne2 $11) 29... dxc4 $17 {[%emt 0:00:02]} 30. Qd1 {[%emt 0:00:06]} Bb4 {[%emt 0:02:22] A strong pair of Bishops.} 31. Na2 {[%emt 0:00:56]} (31. Bxc6 $11 {remains equal.} Rxc6 32. Ne2) 31... Bxa4 {[%emt 0:00:00][%mdl 32768] Weighted Error Value: White=0.27 (precise) /Black=0.17 (very precise) . Loss on time!?} 1-0

[Event "44th Chess Olympiad Women 2022"]
[Site "Chennai"]
[Date "2022.07.29"]
[Round "1.48"]
[White "Ayzenberg, Alena"]
[Black "Sy, Mariama"]
[Result "1-0"]
[ECO "D07"]
[WhiteElo "2023"]
[BlackElo "1211"]
[Annotator "TA"]
[PlyCount "39"]
[EventDate "2022.07.29"]
[EventType "team-tourn"]
[EventCountry "IND"]
[SourceTitle "playchess.com"]
[Source "ChessBase"]
[SourceQuality "1"]
[WhiteTeam "Norway"]
[BlackTeam "Senegal"]
[WhiteTeamCountry "NOR"]
[BlackTeamCountry "SEN"]
[TimeControl "40/5400+30:1800+30"]

{[%evp 9,38,118,123,91,304,297,553,556,550,543,1103,1106,2154,873,1339,1325,1950,1941,2168,2168,2595,2582,2549,2543,29996,29997,29997,29998,29998,29999,29999]} 1. d4 {[%emt 0:00:04]} d5 {[%emt 0:00:10]} 2. c4 {[%emt 0:00:07]} Nf6 {[%emt 0:01:51]} 3. cxd5 {[%emt 0:00:32]} Nxd5 {[%emt 0:00:30]} 4. Nf3 {[%emt 0:02:11]} Nc6 {[%emt 0:02:44]} 5. e4 {[%emt 0:02:39]} Nf6 {[%emt 0:02:36]} 6. d5 {[%emt 0:12:59] [#] Threatens to win with Qa4. D07: Queen's Gambit: Chigorin Defence.} Nb4 $2 {[%emt 0:02:45]} (6... Nxe4 $2 7. Be2 $18) (6... Nb8 $16) 7. Qa4+ $18 {[%emt 0:02:58]} Nc6 $2 {[%emt 0:06:25]} (7... c6 {might work better.} 8. Qxb4 e6) 8. dxc6 {[%emt 0:00:59] White is clearly winning.} bxc6 {[%emt 0:00:35] [#]} 9. Ne5 $146 {[%emt 0:08:33]} ({Predecessor:} 9. Qxc6+ Bd7 10. Qa6 e5 11. Bb5 Bb4+ 12. Bd2 Bc5 13. Nxe5 O-O 14. Bg5 Bb4+ 15. Nc3 Bxb5 16. Qxb5 {1-0 (36) Hughes,C (865)-Losev,V (889) LSS email 2014}) 9... Bb7 {[%emt 0:05:21]} 10. Qb3 {[%emt 0:04:02][%csl Ge5][%cal Rb3f7] [#]} Qb8 {[%emt 0:03:05]} 11. Nxf7 {[%emt 0:08:04]} (11. Qxf7+ $142 Kd8 12. Nc3) 11... Rg8 {[%emt 0:02:02]} 12. Ng5 {[%emt 0:00:39]} Nd5 {[%emt 0:04:55]} 13. exd5 {[%emt 0:05:31]} cxd5 {[%emt 0:00:24]} 14. Qf3 {[%emt 0:02:05]} Rh8 {[%emt 0:05:42]} 15. Qf7+ {[%emt 0:00:20]} Kd7 {[%emt 0:04:36]} 16. Qe6+ {[%emt 0:04:08]} Ke8 {[%emt 0:04:14]} 17. Bb5+ {[%emt 0:00:41] White mates.} c6 {[%emt 0:00:36]} 18. Bxc6+ {[%emt 0:00:24]} Bxc6 {[%emt 0:00:26]} 19. Qxc6+ {[%emt 0:00:08]} Kd8 {[%emt 0:33:15]} 20. Nf7# {[%emt 0:00:14] Black did not feel at home in the position after the opening.  Weighted Error Value: White=0.27 (precise) /Black=1.73} 1-0

[Event "44th Chess Olympiad Women 2022"]
[Site "Chennai"]
[Date "2022.07.29"]
[Round "1.48"]
[White "Sy Mame, Binta"]
[Black "Stanford, Sheila Barth"]
[Result "0-1"]
[ECO "A00"]
[WhiteElo "1256"]
[BlackElo "2097"]
[Annotator "TA"]
[PlyCount "39"]
[EventDate "2022.07.29"]
[EventType "team-tourn"]
[EventCountry "IND"]
[SourceTitle "playchess.com"]
[Source "ChessBase"]
[SourceQuality "1"]
[WhiteTeam "Senegal"]
[BlackTeam "Norway"]
[WhiteTeamCountry "SEN"]
[BlackTeamCountry "NOR"]
[TimeControl "40/5400+30:1800+30"]

{[%evp 9,39,-12,8,-39,-31,-108,-97,-110,-120,-114,-119,-106,-104,-152,-80,-122,-100,-186,-193,-247,-200,-190,-91,-236,-229,-235,-227,-233,-234,-234,-207,-192]} 1. e3 {[%emt 0:00:06]} Nf6 {[%emt 0:00:41]} 2. d3 {[%emt 0:02:16]} d5 {[%emt 0:01:09]} 3. a3 {[%emt 0:02:17]} Bf5 {[%emt 0:01:42]} 4. h3 {[%emt 0:03:32] [#]} h5 $146 {[%emt 0:01:11]} ({Predecessor:} 4... c6 5. f4 Nbd7 6. g4 Be4 7. dxe4 Nxe4 8. Ne2 e6 9. Bg2 Qb6 10. Bxe4 dxe4 {1-0 (33) Jarz,E-Nieke,K freechess.de 2019}) 5. Be2 {[%emt 0:05:37]} c5 {[%emt 0:00:18]} 6. Bd2 {[%emt 0:05:40] A00: Irregular Openings.} (6. b4 $11) 6... Nc6 $15 {[%emt 0:00:39]} 7. Bf3 {[%emt 0:07:01]} (7. Nf3 $15) 7... e5 $17 {[%emt 0:00:56]} 8. Nc3 {[%emt 0:29:03][%cal Oc3d5] Black is better.} e4 {[%emt 0:05:44]} 9. dxe4 {[%emt 0:07:42]} dxe4 {[%emt 0:00:04]} 10. Be2 {[%emt 0:01:26]} a6 $36 {[%emt 0:04:22][%mdl 2048] Black has strong initiative.} 11. f3 {[%emt 0:02:16]} (11. a4 $142) 11... exf3 {[%emt 0:02:50] Black is more active.} (11... Bd6 $142 12. Kf1 Qd7) 12. Nxf3 {[%emt 0:04:26]} Qd6 {[%emt 0:10:16]} 13. Kf2 {[%emt 0:07:40] [#]} (13. O-O $17) 13... O-O-O $1 $19 {[%emt 0:05:20]} ({Weaker is} 13... h4 14. Be1 $15) 14. Ng5 {[%emt 0:03:51]} (14. Bd3 {is a better defense.} Bxd3 15. cxd3) 14... Ne5 {[%emt 0:20:28]} 15. e4 {[%emt 0:05:40]} Nxe4+ {[%emt 0:11:18]} (15... Bxe4 $19 16. Ncxe4 Qd4+ 17. Be3 Nxe4+ 18. Nxe4 Qxe4) 16. Ncxe4 {[%emt 0:01:57] Now White is beyond hope.} (16. Ngxe4 $17 {was forced.} Bxe4 17. Bg5 Bxg2 18. Rg1 (18. Qxd6 Rxd6 19. Kxg2 Rg6 $17) 18... Qxd1 19. Nxd1) 16... Bxe4 {[%emt 0:00:04] Black is clearly better.} 17. Nxe4 {[%emt 0:00:25]} Qd4+ {[%emt 0:00:15]} 18. Be3 {[%emt 0:02:22]} Qxe4 {[%emt 0:00:08]} 19. Bf3 {[%emt 0:05:57]} Qh4+ {[%emt 0:05:46]} ({Not} 19... Rxd1 20. Bxe4 Rxh1 21. Rxh1 $15) 20. g3 {[%emt 0:00:00] Weighted Error Value: White=0.45/Black=0.19 (very precise)} 0-1